bitfinex/quotes_BTCUSD_20250614
["timestamp","ask_amount","ask_price","bid_price","bid_amount"]
[1749928784486,0.75245551,105110.0,105100.0,0.0671]
[1749928784708,0.75245558,105110.0,105100.0,0.0671]
[1749928784927,0.73463122,105110.0,105100.0,0.0671]
[1749928785145,0.74132722,105110.0,105100.0,0.0671]
[1749928785353,0.75918322,105110.0,105100.0,0.0671]
[1749928785582,0.75248723,105110.0,105100.0,0.0671]
[1749928785828,0.75918322,105110.0,105100.0,0.25739495]
[1749928786023,0.74966944,105110.0,105100.0,0.07661474]
[1749928786242,0.74966948,105110.0,105100.0,0.0671]
[1749928786460,0.74966947,105110.0,105100.0,0.0671]
[1749928786672,0.73181354,105110.0,105100.0,0.25739495]
[1749928786899,0.38149614,105110.0,105100.0,0.3345149]
[1749928787148,0.56056318,105110.0,105100.0,0.3345149]
[1749928787384,0.57172204,105110.0,105100.0,0.3345149]
[1749928787868,0.56338032,105110.0,105100.0,0.3345149]
[1749928788089,0.23289407,105110.0,105100.0,0.28593809]
[1749928788519,0.21386666,105110.0,105100.0,0.28593809]
[1749928788940,0.22338032,105110.0,105100.0,0.28593809]
[1749928789364,0.21386666,105110.0,105100.0,0.28593809]
[1749928789578,0.20435318,105110.0,105100.0,0.28593809]
[1749928790220,0.21386675,105110.0,105100.0,0.28593809]
[1749928790443,0.21386666,105110.0,105100.0,0.28593809]
[1749928790660,0.20435318,105110.0,105100.0,0.28593809]
[1749928792021,0.21386666,105110.0,105100.0,0.28593809]
[1749928792684,0.20435318,105110.0,105100.0,0.28593809]
[1749928792913,0.22338041,105110.0,105100.0,0.29545256]
[1749928793134,0.22338032,105110.0,105100.0,0.29545256]
[1749928793368,0.23289407,105110.0,105100.0,0.29545256]
[1749928796131,0.4136579,105110.0,105100.0,0.29545265]
[1749928796322,0.22338105,105110.0,105100.0,0.30496676]
[1749928796802,0.2138673,105110.0,105100.0,0.30496676]
[1749928797924,0.20435318,105110.0,105100.0,0.30496676]
[1749928798157,0.20435318,105110.0,105100.0,0.35449474]
[1749928798365,0.02528687,105110.0,105100.0,0.30496676]
[1749928798582,0.18528687,105110.0,105100.0,0.30496676]
[1749928799059,0.19479998,105110.0,105100.0,0.30496676]
[1749928799528,0.18528687,105110.0,105100.0,0.30496676]
[1749928799760,0.20431318,105110.0,105100.0,0.30496676]
[1749928800694,0.19479989,105110.0,105100.0,0.30496676]
[1749928800930,0.20431309,105110.0,105100.0,0.30496676]
[1749928801198,0.04431318,105110.0,105100.0,0.35449474]
[1749928801435,0.04431309,105110.0,105100.0,0.35449474]
[1749928801670,0.03479989,105110.0,105100.0,0.35449474]
[1749928801921,0.04431318,105110.0,105100.0,0.30496676]
[1749928802834,0.04431309,105110.0,105100.0,0.30496676]
[1749928803241,0.05382638,105110.0,105100.0,0.30496676]
[1749928804039,0.06333986,105110.0,105100.0,0.30496676]
[1749928804808,0.02528687,105110.0,105100.0,0.35449474]
[1749928805048,0.02528687,105110.0,105100.0,0.30496676]
[1749928805477,0.03479989,105110.0,105100.0,0.30496676]
[1749928805738,0.02528687,105110.0,105100.0,0.30496676]
[1749928805976,0.02528687,105110.0,105100.0,0.40120852]
[1749928806202,0.05382703,105110.0,105100.0,0.40120852]
[1749928806476,0.03479998,105110.0,105100.0,0.40120852]
[1749928808462,0.24410388,105110.0,105100.0,0.28593845]
[1749928808694,0.05382703,105110.0,105100.0,0.29545256]
[1749928809130,0.04431337,105110.0,105100.0,0.29545256]
[1749928809353,0.05382694,105110.0,105100.0,0.29545256]
[1749928809998,0.04431337,105110.0,105100.0,0.29545256]
[1749928810274,0.05382694,105110.0,105100.0,0.29545256]
[1749928810504,0.04431337,105110.0,105100.0,0.29545256]
[1749928810729,0.03479998,105110.0,105100.0,0.34402912]
[1749928810955,0.04431327,105110.0,105100.0,0.34402912]
[1749928811172,0.03479998,105110.0,105100.0,0.34402912]
[1749928811391,0.04431327,105110.0,105100.0,0.34402912]
[1749928812051,0.03479989,105110.0,105100.0,0.34402912]
[1749928813156,0.04431309,105110.0,105100.0,0.29545256]
[1749928813829,0.03479989,105110.0,105100.0,0.29545256]
[1749928814328,0.044313,105110.0,105100.0,0.29545256]
[1749928814769,0.03479989,105110.0,105100.0,0.29545256]
[1749928815647,0.02528687,105110.0,105100.0,0.29545256]
[1749928815862,0.03479989,105110.0,105100.0,0.29545256]
[1749928816087,0.02528687,105110.0,105100.0,0.29545256]
[1749928816748,0.02528687,105110.0,105100.0,0.44027088]
[1749928817199,0.74267269,105130.0,105110.0,0.28121755]
[1749928817425,0.02853771,105120.0,105110.0,0.29073066]
[1749928817655,0.02853708,105120.0,105110.0,0.29073066]
[1749928817909,0.03804974,105120.0,105110.0,0.29073066]
[1749928818126,0.06686181,105120.0,105110.0,0.29073066]
[1749928818343,0.05734906,105120.0,105110.0,0.34414049]
[1749928818563,0.06686181,105120.0,105110.0,0.34414049]
[1749928819215,0.06686181,105120.0,105110.0,0.29073066]
[1749928819430,0.06686244,105120.0,105110.0,0.29073066]
[1749928819868,0.06886244,105120.0,105110.0,0.29073066]
[1749928820325,0.25912119,105120.0,105110.0,0.20930426]
[1749928820556,0.0095132,105110.0,105100.0,0.44119809]
[1749928820776,0.0095132,105110.0,105100.0,0.28132871]
[1749928821445,0.221071,105120.0,105110.0,0.2093039]
[1749928821446,0.23058366,105120.0,105110.0,0.2093039]
[1749928821665,0.23058366,105120.0,105110.0,0.19027685]
[1749928822074,0.22858366,105120.0,105110.0,0.20930399]
[1749928822075,0.22858366,105120.0,105110.0,0.19979051]
[1749928822319,0.19027685,105110.0,105100.0,0.26430022]
[1749928822586,0.20930426,105110.0,105100.0,0.22092925]
[1749928822812,0.20930426,105110.0,105100.0,0.21892925]
[1749928823265,0.20930426,105110.0,105100.0,0.19990022]
[1749928823480,0.20930426,105110.0,105100.0,0.20941478]
[1749928823927,0.20930426,105110.0,105100.0,0.21892925]
[1749928824146,0.26388542,105110.0,105100.0,0.22844363]
[1749928824368,0.20930426,105110.0,105100.0,0.22844363]
[1749928824579,0.20930426,105110.0,105100.0,0.23044363]
[1749928825018,0.21030426,105110.0,105100.0,0.23044363]
[1749928826147,0.21030426,105110.0,105100.0,0.21141478]
[1749928826587,0.21030426,105110.0,105100.0,0.00209062]
[1749928826806,0.21030426,105110.0,105100.0,0.20190013]
[1749928828138,0.21030426,105110.0,105100.0,0.23240013]
[1749928828365,0.21030426,105110.0,105100.0,0.20190031]
[1749928828580,0.21030426,105110.0,105100.0,0.21141496]
[1749928829029,0.21030426,105110.0,105100.0,0.22092952]
[1749928830162,0.21030426,105110.0,105100.0,0.23044399]
[1749928830419,0.21030426,105110.0,105100.0,0.00209062]
[1749928830629,0.21030426,105110.0,105100.0,0.04210536]
[1749928831268,0.21030426,105110.0,105100.0,0.03259062]
[1749928831920,0.21030426,105110.0,105100.0,0.22288557]
[1749928832140,0.21030426,105110.0,105100.0,0.24191496]
[1749928832573,0.20079069,105110.0,105100.0,0.03259062]
[1749928834176,0.17116789,105110.0,105100.0,0.03259062]
[1749928834392,0.17116789,105110.0,105100.0,0.00209062]
[1749928834598,0.18068146,105110.0,105100.0,0.00209062]
[1749928834844,0.02002741,105110.0,105100.0,0.23044345]
[1749928835054,0.02002741,105110.0,105100.0,0.26174345]
[1749928835270,0.02002741,105110.0,105100.0,0.29204345]
[1749928835920,0.02002741,105110.0,105100.0,0.26174345]
[1749928836152,0.03905427,105110.0,105100.0,0.26174345]
[1749928836360,0.22933112,105110.0,105100.0,0.26174354]
[1749928836577,0.03905427,105110.0,105100.0,0.26174354]
[1749928836799,0.03905427,105110.0,105100.0,0.27125765]
[1749928838390,0.22933112,105110.0,105100.0,0.26174354]
[1749928838601,0.08090643,105110.0,105100.0,0.27125765]
[1749928839457,0.03905427,105110.0,105100.0,0.27125765]
[1749928839708,0.23884496,105110.0,105100.0,0.25222934]
[1749928839923,0.03905482,105110.0,105100.0,0.26174363]
[1749928840144,0.22933167,105110.0,105100.0,0.27125783]
[1749928840581,0.22933167,105110.0,105100.0,0.26174309]
[1749928841012,0.2198181,105110.0,105100.0,0.23320022]
[1749928841254,0.2198181,105110.0,105100.0,0.24271469]
[1749928841471,0.2198181,105110.0,105100.0,0.25222907]
[1749928841697,0.2198181,105110.0,105100.0,0.26174336]
[1749928842611,0.2198181,105110.0,105100.0,0.29314336]
[1749928846306,0.2198181,105110.0,105100.0,0.27411469]
[1749928846517,0.2417739,105110.0,105100.0,0.26460022]
[1749928846733,0.2417739,105110.0,105100.0,0.2741146]
[1749928847154,0.2417739,105110.0,105100.0,0.27411469]
[1749928847576,0.2417739,105110.0,105100.0,0.21141469]
[1749928847577,0.20079069,105110.0,105100.0,0.21141469]
[1749928847929,0.20079069,105110.0,105100.0,0.00209062]
[1749928848154,4.32893724,105110.0,105100.0,0.00209062]
[1749928848402,4.35348825,105110.0,105100.0,0.00209062]
[1749928848647,4.54959338,105110.0,105100.0,0.00209062]
[1749928849115,4.55629012,105110.0,105100.0,0.00209062]
[1749928849118,4.55629,105110.0,105100.0,0.00209062]
[1749928849376,4.55628994,105110.0,105100.0,0.00209062]
[1749928849609,0.74208144,105110.0,105100.0,0.26510022]
[1749928849841,0.53928138,105110.0,105100.0,0.26510022]
[1749928850077,0.73538544,105110.0,105100.0,0.31349591]
[1749928850313,4.40095702,105110.0,105100.0,0.00209062]
[1749928850557,4.42586114,105110.0,105100.0,0.00209062]
[1749928850790,4.42586151,105110.0,105100.0,0.00209062]
[1749928851026,4.43255754,105110.0,105100.0,0.00209062]
[1749928851257,4.43255756,105110.0,105100.0,0.00209062]
[1749928851932,4.42586153,105110.0,105100.0,0.00209062]
[1749928852162,4.41470147,105110.0,105100.0,0.00209062]
[1749928852600,4.52201135,105110.0,105100.0,0.00209062]
[1749928852897,4.50415466,105110.0,105100.0,0.00209062]
[1749928853140,4.47925088,105110.0,105100.0,0.00209062]
[1749928853374,4.49041126,105110.0,105100.0,0.00209062]
[1749928853583,4.44745087,105110.0,105100.0,0.00209062]
[1749928853800,4.46530745,105110.0,105100.0,0.00209062]
[1749928854022,4.46530757,105110.0,105100.0,0.00209062]
[1749928854245,4.46530759,105110.0,105100.0,0.00209062]
[1749928854480,4.46530761,105110.0,105100.0,0.00209062]
[1749928854716,4.45861134,105110.0,105100.0,0.00209062]
[1749928854942,4.4474509,105110.0,105100.0,0.00209062]
[1749928855161,4.44075466,105110.0,105100.0,0.00209062]
[1749928855405,4.46530758,105110.0,105100.0,0.00209062]
[1749928855620,4.45861135,105110.0,105100.0,0.00209062]
[1749928855838,4.45857616,105110.0,105100.0,0.00209062]
[1749928856266,4.44075466,105110.0,105100.0,0.00209062]
[1749928856487,4.45857616,105110.0,105100.0,0.00209062]
[1749928856768,4.50375466,105110.0,105100.0,0.00209062]
[1749928857004,4.52157621,105110.0,105100.0,0.00209062]
[1749928857439,4.52157619,105110.0,105100.0,0.00209062]
[1749928857657,4.50375466,105110.0,105100.0,0.00209062]
[1749928857874,4.48977621,105110.0,105100.0,0.00209062]
[1749928858103,4.47195466,105110.0,105100.0,0.00209062]
[1749928858337,4.48977608,105110.0,105100.0,0.00209062]
[1749928858570,4.45857619,105110.0,105100.0,0.00209062]
[1749928858791,4.45857621,105110.0,105100.0,0.00209062]
[1749928859028,4.4585762,105110.0,105100.0,0.00209062]
[1749928859214,4.44075466,105110.0,105100.0,0.00209062]
[1749928859472,4.45857624,105110.0,105100.0,0.00209062]
[1749928859664,4.44075466,105110.0,105100.0,0.00209062]
[1749928859883,4.52157626,105110.0,105100.0,0.00209062]
[1749928860116,4.59999642,105110.0,105100.0,0.00209062]
[1749928860344,4.61781802,105110.0,105100.0,0.00209062]
[1749928860610,4.60667954,105110.0,105100.0,0.00209062]
[1749928860841,4.62450125,105110.0,105100.0,0.00209062]
[1749928861046,4.61781813,105110.0,105100.0,0.00209062]
[1749928861270,4.62450112,105110.0,105100.0,0.00209062]
[1749928861521,4.61781814,105110.0,105100.0,0.00209062]
[1749928861740,4.62450128,105110.0,105100.0,0.00209062]
[1749928861951,4.59999642,105110.0,105100.0,0.00209062]
[1749928862182,4.65299403,105110.0,105100.0,0.00209062]
[1749928862407,4.64631089,105110.0,105100.0,0.00209062]
[1749928862615,4.62848917,105110.0,105100.0,0.00209062]
[1749928862840,5.04303002,105110.0,105100.0,0.00209062]
[1749928863108,0.20934373,105090.0,105080.0,0.0632]
[1749928863309,0.20934373,105090.0,105080.0,0.0633428]
[1749928864185,0.20934373,105090.0,105080.0,0.26319043]
[1749928864446,0.19982853,105090.0,105080.0,0.25367397]
[1749928864674,0.19982853,105090.0,105080.0,0.0633428]
[1749928864923,0.19131306,105090.0,105080.0,0.26819043]
[1749928865151,0.19131306,105090.0,105080.0,0.26819052]
[1749928865589,0.19131306,105090.0,105080.0,0.28722326]
[1749928866026,0.20082853,105090.0,105080.0,0.33788219]
[1749928866480,0.20082853,105090.0,105080.0,0.28822317]
[1749928867128,0.20082853,105090.0,105080.0,0.29773927]
[1749928867583,0.001,105090.0,105080.0,0.30725519]
[1749928867800,0.02954549,105090.0,105080.0,0.30725519]
[1749928868460,0.02002993,105090.0,105080.0,0.30725519]
[1749928868696,0.02954513,105090.0,105080.0,0.30725519]
[1749928869596,0.0390606,105090.0,105080.0,0.30725519]
[1749928869810,0.02002993,105090.0,105080.0,0.30725519]
[1749928870041,0.02954522,105090.0,105080.0,0.30725519]
[1749928870943,0.0390606,105090.0,105080.0,0.30725519]
[1749928871402,0.04857607,105090.0,105080.0,0.30725519]
[1749928871837,0.02002993,105090.0,105080.0,0.30725519]
[1749928872531,0.02002984,105090.0,105080.0,0.30725519]
[1749928872765,0.001,105090.0,105080.0,0.35701407]
[1749928873903,0.01051483,105090.0,105080.0,0.30725519]
[1749928874645,0.001,105090.0,105080.0,0.30725519]
[1749928884793,0.001,105090.0,105080.0,0.46709519]
[1749928890891,0.001,105090.0,105080.0,1.32046235]
[1749928893190,0.001,105090.0,105080.0,0.56333695]
[1749928897960,0.001,105090.0,105080.0,0.63333695]
[1749928904365,0.001,105090.0,105080.0,0.92823695]
[1749928906350,0.001,105090.0,105080.0,0.76839695]
[1749928906582,0.21985865,105090.0,105080.0,0.21300111]
[1749928906858,0.02954559,105090.0,105080.0,0.46425909]
[1749928907083,0.02003002,105090.0,105080.0,0.46425909]
[1749928908224,0.02002993,105090.0,105080.0,0.46425909]
[1749928909645,0.01051492,105090.0,105080.0,0.46425909]
[1749928910046,0.001,105090.0,105080.0,0.60118004]
[1749928910252,0.001,105090.0,105080.0,0.6974218]
[1749928911306,0.001,105090.0,105080.0,0.62460085]
[1749928920008,0.001,105090.0,105080.0,0.62456085]
[1749928928080,0.001,105090.0,105080.0,0.91946085]
[1749928930831,0.001,105090.0,105080.0,0.62452085]
[1749928933537,0.001,105090.0,105080.0,0.59172085]
[1749928934675,0.001,105090.0,105080.0,0.70941059]
[1749928934896,0.001,105090.0,105080.0,0.62328085]
[1749928935820,0.001,105090.0,105080.0,0.46368085]
[1749928936052,0.001,105090.0,105080.0,0.40078085]
[1749928936303,0.001,105090.0,105080.0,0.56038085]
[1749928938379,0.001,105090.0,105080.0,0.40078085]
[1749928938605,0.11149858,105090.0,105080.0,0.46413909]
[1749928938856,0.11149848,105090.0,105080.0,0.46413909]
[1749928939082,0.10226069,105090.0,105080.0,0.46413909]
[1749928939307,0.1022606,105090.0,105080.0,0.46413909]
[1749928939757,0.09274522,105090.0,105080.0,0.46413909]
[1749928940429,0.08323002,105090.0,105080.0,0.46413909]
[1749928940663,0.02954531,105090.0,105080.0,0.46413909]
[1749928941382,0.02954531,105090.0,105080.0,0.30453909]
[1749928941595,0.02003002,105090.0,105080.0,0.46413909]
[1749928941834,0.03906078,105090.0,105080.0,0.46413909]
[1749928942060,0.07016078,105090.0,105080.0,0.46413909]
[1749928942510,0.07016069,105090.0,105080.0,0.46413909]
[1749928942736,0.07967625,105090.0,105080.0,0.46413909]
[1749928942965,0.10176689,105090.0,105080.0,0.46413909]
[1749928943424,0.10829315,105090.0,105080.0,0.30453909]
[1749928943644,0.10829379,105090.0,105080.0,0.46413909]
[1749928943898,0.09877823,105090.0,105080.0,0.46413909]
[1749928944117,0.08926276,105090.0,105080.0,0.46413909]
[1749928944337,0.13057823,105090.0,105080.0,0.46413909]
[1749928945007,0.31137646,105090.0,105080.0,0.44510698]
[1749928945278,0.31137646,105090.0,105080.0,0.46413945]
[1749928945494,0.3728452,105090.0,105080.0,0.45462335]
[1749928945715,0.17301649,105090.0,105080.0,0.47365546]
[1749928945927,0.1210634,105090.0,105080.0,0.47365546]
[1749928946154,0.32089211,105090.0,105080.0,0.47365546]
[1749928946388,0.13057905,105090.0,105080.0,0.47365483]
[1749928946913,0.11154784,105090.0,105080.0,0.46413891]
[1749928947357,0.11154784,105090.0,105080.0,0.47365483]
[1749928948033,0.12106349,105090.0,105080.0,0.47365483]
[1749928948466,0.11154784,105090.0,105080.0,0.47365483]
[1749928948681,0.31137646,105090.0,105080.0,0.45462308]
[1749928948890,0.31137646,105090.0,105080.0,0.47365537]
[1749928949115,0.32089211,105090.0,105080.0,0.47365537]
[1749928949974,0.37201114,105090.0,105080.0,0.46413927]
[1749928950201,0.35298029,105090.0,105080.0,0.46413927]
[1749928950394,0.11154729,105090.0,105080.0,0.47365483]
[1749928950659,0.05816276,105090.0,105080.0,0.47365483]
[1749928951092,0.04864729,105090.0,105080.0,0.47365483]
[1749928951310,0.05816276,105090.0,105080.0,0.47365483]
[1749928951999,0.05816276,105090.0,105080.0,0.47361483]
[1749928952414,0.05816276,105090.0,105080.0,0.31405483]
[1749928952623,0.05816276,105090.0,105080.0,0.47361483]
[1749928953677,0.04864729,105090.0,105080.0,0.47361483]
[1749928955170,0.24847582,105090.0,105080.0,0.46409891]
[1749928955388,0.12276276,105090.0,105080.0,0.47361492]
[1749928955594,0.12276276,105090.0,105080.0,0.47361447]
[1749928956457,0.13227841,105090.0,105080.0,0.47361447]
[1749928957264,0.12276276,105090.0,105080.0,0.31405447]
[1749928957467,0.12276276,105090.0,105080.0,0.47361447]
[1749928958324,0.09036276,105090.0,105080.0,0.47361447]
[1749928958745,0.09987832,105090.0,105080.0,0.47361447]
[1749928959434,0.09987832,105090.0,105080.0,0.45458254]
[1749928959671,0.10939397,105090.0,105080.0,0.44502644]
[1749928959884,0.06767896,105090.0,105080.0,0.44502644]
[1749928960111,0.24847673,105090.0,105080.0,0.4450268]
[1749928960591,0.24847673,105090.0,105080.0,0.43551052]
[1749928960801,0.23896126,105090.0,105080.0,0.24517935]
[1749928961030,0.29507463,105090.0,105080.0,0.44502698]
[1749928961686,0.29507463,105090.0,105080.0,0.28550698]
[1749928962107,0.23896126,105090.0,105080.0,0.28550698]
[1749928962362,0.23896126,105090.0,105080.0,0.29502335]
[1749928962992,0.23896126,105090.0,105080.0,0.28550698]
[1749928963208,0.2294457,105090.0,105080.0,0.0761428]
[1749928963444,0.2294457,105090.0,105080.0,0.27599043]
[1749928963651,0.2294457,105090.0,105080.0,0.0761428]
[1749928963856,0.28282175,105090.0,105080.0,0.08565935]
[1749928964131,0.28282175,105090.0,105080.0,0.27599052]
[1749928964318,0.28282175,105090.0,105080.0,0.28550698]
[1749928964736,0.2294457,105090.0,105080.0,0.28550698]
[1749928965182,0.2294457,105090.0,105080.0,0.29502326]
[1749928965817,0.2294457,105090.0,105080.0,0.30453945]
[1749928966030,0.2294457,105090.0,105080.0,0.29502326]
[1749928966483,0.2294457,105090.0,105080.0,0.30453927]
[1749928966731,0.23896108,105090.0,105080.0,0.30453927]
[1749928966941,0.04864738,105090.0,105080.0,0.34545519]
[1749928967152,0.06767777,105090.0,105080.0,0.37745519]
[1749928968507,0.06767768,105090.0,105080.0,0.37745519]
[1749928968949,0.05816221,105090.0,105080.0,0.37745519]
[1749928969165,0.06767768,105090.0,105080.0,0.37745519]
[1749928972308,0.05816221,105090.0,105080.0,0.37745519]
[1749928972523,0.06767768,105090.0,105080.0,0.37745519]
[1749928973165,0.05816221,105090.0,105080.0,0.37745519]
[1749928973402,0.02961699,105090.0,105080.0,0.45018607]
[1749928973652,0.03913182,105090.0,105080.0,0.45018607]
[1749928973866,0.04864692,105090.0,105080.0,0.37745519]
[1749928974482,0.03913182,105090.0,105080.0,0.37745519]
[1749928974760,0.04864692,105090.0,105080.0,0.37745519]
[1749928975004,0.04864683,105090.0,105080.0,0.37745519]
[1749928977389,0.05816193,105090.0,105080.0,0.37745519]
[1749928977821,0.03930241,105100.0,105090.0,0.20934409]
[1749928978281,0.04881697,105100.0,105090.0,0.20934409]
[1749928978496,0.05833126,105100.0,105090.0,0.21885938]
[1749928978998,0.05833126,105100.0,105090.0,0.22837458]
[1749928979666,0.08641839,105100.0,105090.0,0.22837458]
[1749928980332,0.08641839,105100.0,105090.0,0.23037458]
[1749928981023,0.04711598,105100.0,105090.0,0.23037458]
[1749928981244,0.04711598,105100.0,105090.0,0.23988959]
[1749928981465,0.05663063,105100.0,105090.0,0.23988959]
[1749928981900,0.24692558,105100.0,105090.0,0.23037458]
[1749928982364,0.24692558,105100.0,105090.0,0.23988968]
[1749928982365,0.06614537,105100.0,105090.0,0.23988968]
[1749928982827,0.25644032,105100.0,105090.0,0.23988968]
[1749928984163,0.33015555,105100.0,105090.0,0.23037458]
[1749928984384,0.35354126,105100.0,105090.0,0.21134409]
[1749928984601,0.37139793,105100.0,105090.0,0.21134409]
[1749928984813,0.35354126,105100.0,105090.0,0.21134409]
[1749928985206,0.37138703,105100.0,105090.0,0.21134409]
[1749928985470,0.37138703,105100.0,105090.0,0.22085938]
[1749928985679,0.371387,105100.0,105090.0,0.22085938]
[1749928986016,0.33848703,105100.0,105090.0,0.22085938]
[1749928986463,0.32897247,105100.0,105090.0,0.22085938]
[1749928986656,0.30161205,105100.0,105090.0,0.21134409]
[1749928987730,0.29209731,105100.0,105090.0,0.20182871]
[1749928987938,0.29209731,105100.0,105090.0,0.21134409]
[1749928988153,0.22789664,105100.0,105090.0,0.22085938]
[1749928988782,0.22789664,105100.0,105090.0,0.25315938]
[1749928989904,0.22789664,105100.0,105090.0,0.26267458]
[1749928990350,0.22789664,105100.0,105090.0,0.23037458]
[1749928993545,0.22789664,105100.0,105090.0,0.22085938]
[1749928993759,0.22789664,105100.0,105090.0,0.23037458]
[1749928994407,0.00951429,105100.0,105090.0,0.26077458]
[1749928994624,0.02854287,105100.0,105090.0,0.30188959]
[1749928995486,0.02854278,105100.0,105090.0,0.30188959]
[1749928996139,0.03805734,105100.0,105090.0,0.30188959]
[1749928996342,0.02854278,105100.0,105090.0,0.30188959]
[1749928996557,0.03805734,105100.0,105090.0,0.30188959]
[1749928996981,0.25481531,105100.0,105090.0,0.002]
[1749928997199,0.25481531,105100.0,105090.0,0.20182853]
[1749928997445,0.25481531,105100.0,105090.0,0.21134391]
[1749928997913,0.25481531,105100.0,105090.0,0.20182853]
[1749928998154,0.31851531,105100.0,105090.0,0.20182853]
[1749928998376,0.33636438,105100.0,105090.0,0.20182853]
[1749928998570,0.31851531,105100.0,105090.0,0.20182853]
[1749928998811,0.33636438,105100.0,105090.0,0.21134382]
[1749928999030,0.3038642,105100.0,105090.0,0.21134382]
[1749928999246,0.28601531,105100.0,105090.0,0.21134382]
[1749928999486,0.20932425,105100.0,105090.0,0.20182853]
[1749928999703,0.26350969,105100.0,105090.0,0.002]
[1749928999920,0.25399495,105100.0,105090.0,0.002]
[1749929000139,3.76631512,105100.0,105090.0,0.002]
[1749929000361,4.05945302,105100.0,105090.0,0.002]
[1749929000569,4.07060955,105100.0,105090.0,0.002]
[1749929000804,4.05945315,105100.0,105090.0,0.002]
[1749929001219,4.07730346,105100.0,105090.0,0.002]
[1749929001446,4.0773035,105100.0,105090.0,0.002]
[1749929001859,4.05945317,105100.0,105090.0,0.002]
[1749929002061,4.05275929,105100.0,105090.0,0.002]
[1749929002269,4.05945317,105100.0,105090.0,0.002]
[1749929002510,3.96330395,105100.0,105090.0,0.002]
[1749929003153,3.96330394,105100.0,105090.0,0.002]
[1749929003385,3.95661007,105100.0,105090.0,0.002]
[1749929003805,3.96330395,105100.0,105090.0,0.002]
[1749929004014,3.95661007,105100.0,105090.0,0.002]
[1749929004229,3.96330395,105100.0,105090.0,0.002]
[1749929004449,4.05945317,105100.0,105090.0,0.002]
[1749929004674,4.05945339,105100.0,105090.0,0.002]
[1749929004880,4.05275929,105100.0,105090.0,0.002]
[1749929005090,4.05945339,105100.0,105090.0,0.002]
[1749929005320,4.05945337,105100.0,105090.0,0.002]
[1749929005528,4.05275929,105100.0,105090.0,0.002]
[1749929005761,4.0594534,105100.0,105090.0,0.002]
[1749929005971,4.05945334,105100.0,105090.0,0.002]
[1749929006176,4.05945333,105100.0,105090.0,0.002]
[1749929006412,4.05275929,105100.0,105090.0,0.002]
[1749929006639,4.05945331,105100.0,105090.0,0.002]
[1749929006851,4.05275929,105100.0,105090.0,0.002]
[1749929007475,4.05945338,105100.0,105090.0,0.002]
[1749929007901,4.05945339,105100.0,105090.0,0.002]
[1749929008569,4.05945338,105100.0,105090.0,0.002]
[1749929009246,4.05275929,105100.0,105090.0,0.002]
[1749929009504,4.05945332,105100.0,105090.0,0.002]
[1749929009736,4.05945336,105100.0,105090.0,0.002]
[1749929009968,4.05945337,105100.0,105090.0,0.002]
[1749929010174,4.05275929,105100.0,105090.0,0.002]
[1749929010381,4.05945337,105100.0,105090.0,0.002]
[1749929010587,4.05275929,105100.0,105090.0,0.002]
[1749929011021,4.05945337,105100.0,105090.0,0.002]
[1749929011486,4.05945334,105100.0,105090.0,0.002]
[1749929011696,4.05275929,105100.0,105090.0,0.002]
[1749929011927,4.05945325,105100.0,105090.0,0.002]
[1749929012202,4.05945327,105100.0,105090.0,0.002]
[1749929012425,4.05945328,105100.0,105090.0,0.002]
[1749929012649,4.05945323,105100.0,105090.0,0.002]
[1749929012886,4.05945331,105100.0,105090.0,0.002]
[1749929013108,4.05275929,105100.0,105090.0,0.002]
[1749929013556,4.05945335,105100.0,105090.0,0.002]
[1749929014430,4.05275929,105100.0,105090.0,0.002]
[1749929014654,4.05945328,105100.0,105090.0,0.002]
[1749929014859,4.05275929,105100.0,105090.0,0.002]
[1749929015059,4.05945631,105100.0,105090.0,0.002]
[1749929015483,3.90245379,105100.0,105090.0,0.002]
[1749929015710,4.10441356,105100.0,105090.0,0.002]
[1749929015922,4.1044135,105100.0,105090.0,0.002]
[1749929016133,4.10441353,105100.0,105090.0,0.002]
[1749929016344,4.09771671,105100.0,105090.0,0.002]
[1749929016556,4.16444168,105100.0,105090.0,0.002]
[1749929016772,4.16444173,105100.0,105090.0,0.002]
[1749929016982,4.15774487,105100.0,105090.0,0.002]
[1749929018934,4.49774487,105100.0,105090.0,0.002]
[1749929020093,4.43771671,105100.0,105090.0,0.002]
[1749929025608,4.44441347,105100.0,105090.0,0.002]
[1749929025817,4.43771671,105100.0,105090.0,0.002]
[1749929026018,4.44441354,105100.0,105090.0,0.002]
[1749929026245,4.43771671,105100.0,105090.0,0.002]
[1749929026456,4.43767671,105100.0,105090.0,0.002]
[1749929026676,4.44437354,105100.0,105090.0,0.002]
[1749929026892,4.43767671,105100.0,105090.0,0.002]
[1749929027322,4.44437354,105100.0,105090.0,0.002]
[1749929027537,4.43767671,105100.0,105090.0,0.002]
[1749929027763,4.44437354,105100.0,105090.0,0.0339]
[1749929028027,4.43767671,105100.0,105090.0,0.0339]
[1749929028248,4.44437354,105100.0,105090.0,0.0339]
[1749929028870,4.43767671,105100.0,105090.0,0.0339]
[1749929029073,4.44437354,105100.0,105090.0,0.0339]
[1749929029520,4.43767671,105100.0,105090.0,0.0339]
[1749929029729,4.44437354,105100.0,105090.0,0.0339]
[1749929029944,4.54052276,105100.0,105090.0,0.0339]
[1749929030580,4.43767671,105100.0,105090.0,0.0339]
[1749929030798,4.44437354,105100.0,105090.0,0.0339]
[1749929032520,4.43767671,105100.0,105090.0,0.0339]
[1749929032730,4.44437354,105100.0,105090.0,0.0339]
[1749929033622,4.43767671,105100.0,105090.0,0.0647]
[1749929033848,4.44437358,105100.0,105090.0,0.0647]
[1749929034062,4.44437354,105100.0,105090.0,0.0647]
[1749929034274,4.43767671,105100.0,105090.0,0.0647]
[1749929034514,4.44437354,105100.0,105090.0,0.0647]
[1749929034722,4.44437355,105100.0,105090.0,0.0647]
[1749929034935,4.43767671,105100.0,105090.0,0.0647]
[1749929035174,4.44437355,105100.0,105090.0,0.0647]
[1749929035832,4.43767671,105100.0,105090.0,0.0647]
[1749929036076,4.54052277,105100.0,105090.0,0.002]
[1749929036310,4.53382593,105100.0,105090.0,0.002]
[1749929036533,4.54052277,105100.0,105090.0,0.002]
[1749929036969,4.53382593,105100.0,105090.0,0.002]
[1749929037201,4.54052277,105100.0,105090.0,0.002]
[1749929037832,4.53382593,105100.0,105090.0,0.002]
[1749929038257,4.54052277,105100.0,105090.0,0.002]
[1749929038475,4.54052256,105100.0,105090.0,0.002]
[1749929039757,4.19382593,105100.0,105090.0,0.002]
[1749929040410,4.20052256,105100.0,105090.0,0.002]
[1749929040904,4.20052257,105100.0,105090.0,0.002]
[1749929041124,4.19382593,105100.0,105090.0,0.002]
[1749929041344,4.20052257,105100.0,105090.0,0.002]
[1749929041794,4.19382593,105100.0,105090.0,0.002]
[1749929043353,4.20052257,105100.0,105090.0,0.002]